bitfinex/quotes_SOLUSD_20250531
["timestamp","ask_amount","ask_price","bid_price","bid_amount"]
[1748698713121,13.98127197,155.4,155.32,26.53568614]
[1748698713122,13.98127197,155.37,155.32,24.42127197]
[1748698713327,13.98127197,155.38,155.33,13.98127197]
[1748698713542,13.98127197,155.38,155.33,20.41906672]
[1748698713840,13.98127197,155.37,155.32,16.87816748]
[1748698714041,6.43500643,155.4,155.32,16.87816748]
[1748698714042,13.98127197,155.36,155.32,10.44]
[1748698714539,13.98127197,155.36,155.31,20.41989386]
[1748698715543,20.41799095,155.36,155.31,20.41989386]
[1748698715711,13.98127197,155.35,155.3,6.43902657]
[1748698715908,6.43671898,155.36,155.29,6.43941988]
[1748698715909,13.98127197,155.34,155.29,6.43941988]
[1748698716134,13.98127197,155.34,155.29,20.42069185]
[1748698716949,13.98127197,155.35,155.3,13.98127197]
[1748698717161,13.98127197,155.35,155.3,20.42014604]
[1748698717547,13.98127197,155.34,155.3,6.43887407]
[1748698717718,13.98127197,155.34,155.29,20.42071054]
[1748698719242,13.98127197,155.34,155.28,10.44]
[1748698719243,13.98127197,155.31,155.28,16.87986633]
[1748698719455,13.98127197,155.32,155.28,6.43986633]
[1748698721558,13.98127197,155.32,155.27,20.42151901]
[1748698721723,20.41962501,155.32,155.27,20.42151901]
[1748698722124,13.98127197,155.32,155.27,20.42151901]
[1748698723021,13.98127197,155.31,155.27,6.44024704]
[1748698723438,13.98127197,155.31,155.26,39.98127197]
[1748698723439,13.98127197,155.31,155.26,46.4219175]
[1748698724944,13.98127197,155.31,155.25,20.42232528]
[1748698724945,13.98127197,155.3,155.25,20.42232528]
[1748698725369,13.98127197,155.29,155.25,6.44105331]
[1748698725836,13.98127197,155.27,155.24,6.44148997]
[1748698726159,13.98127197,155.27,155.23,6.44194727]
[1748698726334,13.98127197,155.26,155.23,6.44194727]
[1748698726519,13.98127197,155.26,155.22,6.44246875]
[1748698727446,13.98127197,155.25,155.21,6.44271279]
[1748698729355,13.98127197,155.26,155.21,6.44271279]
[1748698729648,13.98127197,155.25,155.21,6.44271279]
[1748698731031,13.98127197,155.24,155.21,6.44271279]
[1748698731541,13.98127197,155.23,155.2,16.88313646]
[1748698731850,6.44085569,155.26,155.19,6.44365577]
[1748698731851,13.98127197,155.22,155.19,6.44365577]
[1748698732427,13.98127197,155.22,155.18,6.44412939]
[1748698733726,13.98127197,155.2,155.17,6.4444516]
[1748698733926,13.98127197,155.2,155.15,13.98127197]
[1748698734145,13.98127197,155.19,155.14,20.42706286]
[1748698735127,13.98127197,155.19,155.14,6.44579089]
[1748698735329,13.98127197,155.18,155.14,6.44579089]
[1748698735559,13.98127197,155.19,155.14,6.44579089]
[1748698736128,13.98127197,155.19,155.14,20.42706286]
[1748698736345,13.98127197,155.2,155.15,13.98127197]
[1748698737031,13.98127197,155.19,155.12,16.11570977]
[1748698737228,13.98127197,155.18,155.13,13.98127197]
[1748698738049,13.98127197,155.18,155.13,20.42747837]
[1748698738638,6.58509118,155.21,155.13,20.42747837]
[1748698738838,13.98127197,155.18,155.13,20.42747837]
[1748698739652,13.98127197,155.18,155.12,22.56233174]
[1748698739858,13.98127197,155.18,155.13,13.98127197]
[1748698740767,40.2987903,155.41,155.17,39.98127197]
[1748698740768,13.98127197,155.25,155.17,39.98127197]
[1748698740931,1.6088,155.27,155.17,39.98127197]
[1748698740932,13.98127197,155.26,155.21,13.98127197]
[1748698741555,13.98127197,155.26,155.2,13.98127197]
[1748698741858,13.98127197,155.26,155.21,6.44288383]
[1748698742032,13.98127197,155.26,155.21,20.4241558]
[1748698743249,13.98127197,155.26,155.21,6.44288383]
[1748698744570,13.98127197,155.26,155.21,36.53136538]
[1748698744776,13.98127197,155.27,155.22,13.98127197]
[1748698745658,13.98127197,155.26,155.21,36.53136538]
[1748698746172,13.98127197,155.26,155.21,20.4241558]
[1748698746385,13.98127197,155.23,155.19,6.44371415]
[1748698747052,13.98127197,155.24,155.19,20.42498612]
[1748698747264,13.98127197,155.25,155.19,36.53427151]
[1748698747567,158.66021048,155.28,155.23,13.98127197]
[1748698747766,158.66021048,155.28,155.24,13.98127197]
[1748698747767,144.67893851,155.28,155.24,13.98127197]
[1748698748281,158.66021048,155.28,155.24,6.44163875]
[1748698750070,13.98127197,155.27,155.24,6.44163875]
[1748698750574,13.98127197,155.27,155.23,6.44205372]
[1748698752463,158.66021048,155.28,155.23,20.42332569]
[1748698752952,11.62313252,155.29,155.26,13.98127197]
[1748698753754,13.98127197,155.28,155.23,20.42332569]
[1748698755877,13.98127197,155.28,155.24,13.98127197]
[1748698756060,11.62313252,155.29,155.25,13.98127197]
[1748698756268,144.67893851,155.32,155.26,13.98127197]
[1748698756462,144.67893851,155.32,155.27,13.98127197]
[1748698756668,158.66021048,155.32,155.27,13.98127197]
[1748698757056,158.66021048,155.32,155.26,13.98127197]
[1748698757557,13.98127197,155.31,155.27,6.44039415]
[1748698758862,158.66021048,155.32,155.27,20.42166612]
[1748698759265,13.98127197,155.31,155.27,6.44039415]
[1748698759664,10.44,155.33,155.27,6.44039415]
[1748698759863,10.44,155.33,155.29,13.98127197]
[1748698760081,13.98127197,155.34,155.29,13.98127197]
[1748698760282,13.98127197,155.34,155.28,13.98127197]
[1748698761088,20.41892682,155.34,155.28,13.98127197]
[1748698761389,13.98127197,155.33,155.28,13.98127197]
[1748698761684,13.98127197,155.34,155.29,6.43956468]
[1748698762858,181.9438381,155.35,155.29,6.43956468]
[1748698762859,158.66021048,155.35,155.3,13.98127197]
[1748698763173,144.67893851,155.35,155.29,22.53847639]
[1748698763381,158.66021048,155.35,155.3,13.98127197]
[1748698764570,158.66021048,155.35,155.31,6.43873543]
[1748698764757,13.98127197,155.35,155.31,6.43873543]
[1748698766479,24.42127197,155.37,155.32,13.98127197]
[1748698766801,13.98127197,155.37,155.33,6.43790639]
[1748698767007,13.98127197,155.36,155.32,6.43818661]
[1748698767374,13.98127197,155.37,155.32,20.41945858]
[1748698767776,13.98127197,155.37,155.32,6.43818661]
[1748698768681,13.98127197,155.37,155.32,20.41945858]
[1748698769207,170.25266972,155.38,155.32,20.41945858]
[1748698769696,10.42,155.41,155.35,13.98127197]
[1748698769907,144.67893851,155.42,155.37,13.98127197]
[1748698770112,144.67893851,155.42,155.38,13.98127197]
[1748698770405,144.67893851,155.42,155.37,13.98127197]
[1748698770603,13.98127197,155.43,155.37,13.98127197]
[1748698770814,13.98127197,155.43,155.39,6.43542055]
[1748698770989,20.41472763,155.44,155.39,6.43542055]
[1748698771187,13.98127197,155.43,155.37,20.41712208]
[1748698771900,13.98127197,155.43,155.38,13.98127197]
[1748698772989,20.41512635,155.43,155.38,6.43563267]
[1748698774710,36.42,155.45,155.38,20.41690464]
[1748698774904,36.42,155.45,155.39,13.98127197]
[1748698774905,13.98127197,155.44,155.39,13.98127197]
[1748698775104,13.98127197,155.43,155.38,20.41690464]
[1748698776122,13.98127197,155.4,155.35,20.41834953]
[1748698777101,13.98127197,155.4,155.35,13.98127197]
[1748698778310,20.41630378,155.4,155.35,20.41822728]
[1748698778594,13.98127197,155.39,155.34,13.98127197]
[1748698779821,13.98127197,155.39,155.34,20.41873316]
[1748698781012,9.62684461,155.39,155.34,20.41873316]
[1748698781414,13.98127197,155.4,155.35,13.98127197]
[1748698781595,158.66021048,155.41,155.35,13.98127197]
[1748698782221,13.98127197,155.4,155.36,6.43666323]
[1748698784131,151.11357618,155.41,155.36,6.43666323]
[1748698784290,144.67893851,155.41,155.37,13.98127197]
[1748698784495,158.66021048,155.41,155.36,20.4179352]
[1748698784791,165.09489342,155.41,155.36,20.4179352]
[1748698785599,13.98127197,155.4,155.36,6.43666323]
[1748698786025,165.09489342,155.41,155.36,6.43666323]
[1748698787727,158.66021048,155.41,155.36,20.4179352]
[1748698788826,165.09485782,155.41,155.36,20.4179352]
[1748698789022,13.98127197,155.4,155.34,6.43715118]
[1748698789349,13.98127197,155.39,155.34,13.98127197]
[1748698789639,13.98127197,155.4,155.34,13.98127197]
[1748698790339,13.98127197,155.4,155.36,6.43666323]
[1748698791045,144.67893851,155.41,155.37,13.98127197]
[1748698791622,144.67893851,155.41,155.36,20.4179352]
[1748698792536,158.66021048,155.41,155.36,20.4179352]
[1748698792737,165.09485088,155.41,155.36,20.4179352]
[1748698792912,165.09485088,155.41,155.36,6.43666323]
[1748698793522,13.98127197,155.4,155.36,6.43666323]
[1748698793720,13.98127197,155.39,155.34,20.41850639]
[1748698793925,13.98127197,155.38,155.33,13.98127197]
[1748698794233,13.98127197,155.39,155.33,13.98127197]
[1748698795021,13.98127197,155.39,155.33,20.41905624]
[1748698795843,20.41681277,155.39,155.33,20.41905624]
[1748698796068,13.98127197,155.38,155.33,20.41905624]
[1748698796655,13.98127197,155.37,155.32,16.85819548]
[1748698796856,6.4355408,155.39,155.32,16.85819548]
[1748698796857,13.98127197,155.36,155.32,16.85819548]
[1748698797049,32.4355408,155.39,155.29,13.98127197]
[1748698797050,20.41863794,155.35,155.29,13.98127197]
[1748698797275,13.98127197,155.34,155.28,24.40127197]
[1748698797564,13.98127197,155.33,155.28,10.42]
[1748698797768,13.98127197,155.31,155.26,28.49577483]
[1748698797946,13.98127197,155.31,155.26,6.44070286]
[1748698798268,13.98127197,155.33,155.28,13.98127197]
[1748698799642,13.98127197,155.32,155.28,6.43983799]
[1748698800534,155.09893851,155.35,155.28,20.42110996]
[1748698800535,13.98127197,155.33,155.28,20.42110996]
[1748698800965,13.98127197,155.32,155.28,6.43983799]
[1748698801137,13.98127197,155.32,155.27,20.42162198]
[1748698802053,20.41966097,155.32,155.27,20.42162198]
[1748698802263,20.41966097,155.32,155.26,20.42195719]
[1748698802264,13.98127197,155.31,155.26,20.42195719]
[1748698802650,13.98127197,155.3,155.26,6.44068522]
[1748698804078,13.98127197,155.31,155.26,20.42195719]
[1748698804456,20.42011741,155.31,155.26,20.42195719]
[1748698805349,13.98127197,155.32,155.27,13.98127197]
[1748698806174,13.98127197,155.32,155.27,20.42130199]
[1748698809648,20.41967393,155.32,155.27,20.42130199]
[1748698809879,13.98127197,155.3,155.25,20.4224958]
[1748698810169,13.98127197,155.29,155.25,6.44122383]
[1748698811081,13.98127197,155.3,155.25,20.4224958]
[1748698811281,39.76,155.31,155.27,13.98127197]
[1748698811586,39.76,155.32,155.27,13.98127197]
[1748698811778,79.74127197,155.33,155.28,13.98127197]
[1748698812478,39.98127197,155.33,155.28,13.98127197]
[1748698813257,13.98127197,155.34,155.29,20.42083665]
[1748698813496,20.41877564,155.34,155.29,20.42083665]
[1748698813802,20.41877564,155.34,155.29,6.43956468]
[1748698813803,13.98127197,155.33,155.29,6.43956468]
[1748698814695,13.98127197,155.33,155.28,6.43997939]
[1748698814863,13.98127197,155.33,155.27,13.98127197]
[1748698814864,13.98127197,155.32,155.27,6.4402225]
[1748698815059,13.98127197,155.31,155.26,20.42203962]
[1748698815882,6.43800756,155.33,155.27,13.98127197]
[1748698815883,13.98127197,155.32,155.27,13.98127197]
[1748698816884,13.98127197,155.32,155.26,20.42203962]
[1748698816885,20.41990124,155.32,155.26,20.42203962]
[1748698817201,13.98127197,155.31,155.26,20.42203962]
[1748698817375,13.98127197,155.31,155.25,20.4223241]
[1748698817887,13.98127197,155.29,155.25,6.44105213]
[1748698818367,0.14216157,155.31,155.25,6.44105213]
[1748698818559,0.14216157,155.31,155.25,20.4223241]
[1748698818560,14.12343354,155.31,155.25,20.4223241]
[1748698818761,6.43915003,155.3,155.25,20.4223241]
[1748698819073,13.98127197,155.3,155.25,20.4223241]
[1748698820362,20.42064904,155.3,155.25,20.4223241]
[1748698820765,13.98127197,155.3,155.25,20.4223241]
[1748698820965,20.56218971,155.31,155.26,13.98127197]
[1748698821967,13.98127197,155.3,155.25,6.44105213]
[1748698822677,13.98127197,155.3,155.25,20.4223241]
[1748698822993,20.42043299,155.3,155.25,20.4223241]
[1748698823292,13.98127197,155.3,155.25,20.4223241]
[1748698823689,20.4204839,155.3,155.25,20.4223241]
[1748698824199,20.42045639,155.3,155.25,20.4223241]
[1748698824564,20.42045639,155.3,155.25,13.98127197]
[1748698824864,13.98127197,155.28,155.24,6.44149375]
[1748698825062,13.98127197,155.29,155.24,20.42276572]
[1748698825286,15.58997197,155.3,155.25,13.98127197]
[1748698825667,22.02913465,155.3,155.25,13.98127197]
[1748698826579,15.58997197,155.3,155.25,13.98127197]
[1748698826782,15.58997197,155.3,155.25,20.42212146]
[1748698826987,1.6087,155.3,155.25,20.42212146]
[1748698827209,10.42,155.32,155.28,13.98127197]
[1748698827367,144.67893851,155.33,155.29,13.98127197]
[1748698827872,158.66021048,155.33,155.28,13.98127197]
[1748698828073,13.98127197,155.31,155.26,13.98127197]
[1748698828375,13.98127197,155.3,155.25,20.42212146]
[1748698828691,13.98127197,155.29,155.25,6.44084949]
[1748698831690,20.42084749,155.29,155.24,6.44151678]
[1748698831896,13.98127197,155.26,155.2,10.42]
[1748698832191,13.98127197,155.24,155.2,6.44320057]
[1748698832382,13.98127197,155.25,155.2,6.44320057]
[1748698832793,13.98127197,155.23,155.16,10.4]
[1748698832993,13.98127197,155.2,155.14,6.44579089]
[1748698833195,13.98127197,155.18,155.14,6.44579089]
[1748698833371,13.98127197,155.17,155.13,6.44607031]
[1748698833575,13.98127197,155.16,155.11,13.98127197]
[1748698833776,13.98127197,155.16,155.12,6.44648957]
[1748698834185,30.67124886,155.22,155.12,22.56304449]
[1748698834186,1.6016,155.22,155.12,22.56304449]
[1748698834381,41.58287197,155.22,155.17,13.98127197]
[1748698834870,13.98127197,155.21,155.17,6.44454469]
[1748698835066,13.98127197,155.21,155.16,20.42609995]
[1748698835497,41.58287197,155.22,155.17,13.98127197]
[1748698835871,13.98127197,155.2,155.11,26.0]
[1748698836094,13.98127197,155.18,155.13,13.98127197]
[1748698836482,13.98127197,155.19,155.13,13.98127197]
[1748698836992,13.98127197,155.19,155.14,6.44579089]
[1748698837176,13.98127197,155.17,155.11,26.0]
[1748698837375,13.98127197,155.17,155.12,13.98127197]
[1748698837571,13.98127197,155.17,155.13,13.98127197]
[1748698837770,13.98127197,155.18,155.13,13.98127197]
[1748698838993,13.98127197,155.18,155.13,20.42733263]
[1748698840100,20.42549428,155.18,155.13,20.42733263]
[1748698840413,13.98127197,155.19,155.14,13.98127197]
[1748698840583,6.4434147,155.2,155.15,13.98127197]
[1748698840908,20.42468667,155.2,155.15,13.98127197]
[1748698841106,20.42468667,155.2,155.14,13.98127197]
[1748698841289,46.34511275,155.21,155.14,13.98127197]
[1748698841605,13.98127197,155.2,155.14,13.98127197]
[1748698841812,13.98127197,155.19,155.14,13.98127197]
[1748698842606,6.58511275,155.21,155.14,13.98127197]
[1748698842607,13.98127197,155.2,155.15,6.44537544]
[1748698842790,13.98127197,155.19,155.15,6.44537544]
[1748698844839,13.98127197,155.21,155.15,20.42664741]
[1748698845117,158.66021048,155.22,155.17,13.98127197]
[1748698845409,6.44209326,155.23,155.18,13.98127197]
[1748698845410,13.98127197,155.23,155.18,13.98127197]
[1748698845591,13.98127197,155.22,155.17,13.98127197]
[1748698846105,13.98127197,155.22,155.17,20.42565359]
[1748698846700,13.98127197,155.21,155.17,6.44438162]
[1748698846898,13.98127197,155.21,155.16,13.98127197]
[1748698847206,6.44206784,155.23,155.14,20.42706286]
[1748698847207,13.98127197,155.19,155.14,20.42706286]
[1748698847515,13.98127197,155.21,155.16,13.98127197]
[1748698848105,13.98127197,155.2,155.15,13.98127197]
[1748698848305,13.98127197,155.2,155.15,20.42644363]
[1748698850716,13.98127197,155.2,155.14,20.42695422]
[1748698850717,13.98127197,155.19,155.14,20.42695422]
[1748698851320,13.98127197,155.16,155.11,6.3282]
[1748698851517,13.98127197,155.16,155.11,20.30947197]
[1748698851717,13.98127197,155.17,155.11,20.30947197]
[1748698852219,13.98127197,155.16,155.11,20.42826084]
[1748698852387,13.98127197,155.15,155.1,20.42862134]
[1748698854215,13.98127197,155.16,155.11,13.98127197]
[1748698855098,13.98127197,155.17,155.12,13.98127197]
[1748698855298,39.98127197,155.18,155.13,13.98127197]
[1748698855519,13.98127197,155.17,155.12,13.98127197]
[1748698856215,13.98127197,155.17,155.11,20.42806088]
[1748698856404,13.98127197,155.17,155.12,13.98127197]
[1748698857890,13.98127197,155.16,155.11,6.44678891]
[1748698858090,13.98127197,155.16,155.11,20.42806088]
[1748698858295,13.98127197,155.16,155.11,13.98127197]
[1748698858494,13.98127197,155.16,155.11,20.42826426]
[1748698859407,20.42621309,155.17,155.12,13.98127197]
[1748698860797,13.98127197,155.16,155.11,20.42817888]
[1748698861290,13.98127197,155.16,155.11,20.42824871]
[1748698861711,20.42639405,155.16,155.11,13.98127197]
[1748698861918,13.98127197,155.15,155.1,13.98127197]
[1748698862116,13.98127197,155.15,155.1,20.42860646]
[1748698862695,158.66021048,155.17,155.12,13.98127197]
[1748698863001,144.67893851,155.17,155.13,13.98127197]
[1748698864518,144.67893851,155.17,155.13,20.42734155]
[1748698864892,144.67893851,155.17,155.14,13.98127197]
[1748698866097,144.67893851,155.23,155.16,13.98127197]
[1748698866305,144.67893851,155.23,155.13,6.44606958]
[1748698866306,16.86207375,155.23,155.19,13.98127197]
[1748698866534,10.42,155.23,155.19,13.98127197]
[1748698866720,30.84347769,155.23,155.18,13.98127197]
[1748698867022,13.98127197,155.21,155.16,20.42607921]
[1748698867197,13.98127197,155.2,155.16,6.44480724]
[1748698867893,13.98127197,155.21,155.16,20.42607921]
[1748698868096,60.20421884,155.21,155.16,20.42607921]
[1748698868910,53.76127197,155.21,155.16,20.42607921]
[1748698869101,39.78,155.21,155.18,13.98127197]
[1748698869699,39.78,155.21,155.17,13.98127197]
[1748698870619,46.22302907,155.21,155.13,16.8295]
[1748698870811,13.98127197,155.2,155.13,16.8295]
[1748698870997,13.98127197,155.2,155.14,13.98127197]
[1748698871402,13.98127197,155.2,155.15,13.98127197]
[1748698872012,20.42472993,155.2,155.15,13.98127197]
[1748698873124,13.98127197,155.19,155.13,12.85569287]
[1748698873320,13.98127197,155.19,155.14,13.98127197]
[1748698874222,20.4251605,155.19,155.14,20.42699149]
[1748698874901,20.4251605,155.19,155.14,13.98127197]
[1748698875222,20.4251605,155.19,155.14,20.42699098]
[1748698875422,13.98127197,155.19,155.14,20.42699098]
[1748698875596,20.42499914,155.19,155.14,20.42699098]
[1748698876199,20.42499914,155.19,155.14,13.98127197]
[1748698876825,20.42499914,155.19,155.14,20.42694606]
[1748698878332,20.42499914,155.19,155.14,13.98127197]
[1748698878935,13.98127197,155.18,155.13,20.42737479]
[1748698879319,13.98127197,155.18,155.12,1.6156]
[1748698879520,13.98127197,155.16,155.11,13.98127197]
[1748698879726,13.98127197,155.15,155.1,13.98127197]
[1748698879925,13.98127197,155.14,155.09,20.42887161]
[1748698880608,20.42688874,155.15,155.1,13.98127197]
[1748698881247,144.67893851,155.17,155.13,13.98127197]
[1748698882422,158.66021048,155.17,155.13,6.4462064]
[1748698882821,158.66021048,155.17,155.12,20.42776773]
[1748698883352,165.10476354,155.17,155.12,20.42776773]
[1748698884140,13.98127197,155.15,155.1,20.42860781]
[1748698884436,20.4280462,155.12,155.06,6.44911647]
[1748698884644,13.98127197,155.12,155.07,13.98127197]
[1748698885152,20.42791837,155.12,155.07,13.98127197]
[1748698885913,13.98127197,155.12,155.07,13.98127197]
[1748698886148,20.4276389,155.13,155.08,13.98127197]
[1748698886347,20.4276389,155.13,155.06,6.44911647]
[1748698886644,20.4276389,155.13,155.08,13.98127197]
[1748698886957,13.98127197,155.12,155.07,20.4297753]
[1748698887335,13.98127197,155.11,155.07,6.44850333]
[1748698887540,13.98127197,155.12,155.07,13.98127197]
[1748698887829,13.98127197,155.12,155.06,6.44895796]
[1748698888031,13.98127197,155.11,155.06,20.43022993]
[1748698891172,6.4463618,155.13,155.06,20.43022993]
[1748698891343,13.98127197,155.12,155.06,20.43022993]
[1748698891954,144.67893851,155.14,155.08,13.98127197]
[1748698892164,144.67893851,155.14,155.12,13.98127197]
[1748698892333,10.42,155.18,155.13,13.98127197]
[1748698892532,10.42,155.18,155.15,13.98127197]
[1748698893064,198.44021048,155.2,155.15,13.98127197]
[1748698893065,144.67893851,155.2,155.16,13.98127197]
[1748698893556,158.66021048,155.2,155.15,20.42624039]
[1748698894870,144.67893851,155.2,155.16,13.98127197]
[1748698895445,144.67893851,155.2,155.15,6.44496842]
[1748698895446,165.10363319,155.2,155.15,20.42624039]
[1748698896261,165.10363319,155.2,155.15,13.98127197]
[1748698897349,13.98127197,155.18,155.13,20.42747837]
[1748698897558,13.98127197,155.19,155.13,20.42747837]
[1748698897938,165.10363319,155.2,155.14,13.98127197]
[1748698898144,165.10363319,155.2,155.15,13.98127197]
[1748698899657,165.10363319,155.2,155.14,6.44572571]
[1748698899958,13.98127197,155.18,155.13,20.42736943]
[1748698900751,13.98127197,155.19,155.14,13.98127197]
[1748698900956,20.42526731,155.19,155.14,13.98127197]
[1748698901153,20.42526731,155.19,155.14,20.42698367]
[1748698901876,20.42526731,155.19,155.14,6.4457117]
[1748698902062,13.98127197,155.18,155.13,13.98127197]
[1748698902448,20.42526731,155.19,155.14,13.98127197]
[1748698903056,20.42526731,155.19,155.14,20.4270348]
[1748698903585,13.98127197,155.18,155.13,20.42744571]
[1748698904992,20.42558004,155.18,155.13,20.42744571]
[1748698905350,13.98127197,155.18,155.13,20.42744571]
[1748698905572,20.42512777,155.19,155.14,13.98127197]
[1748698906556,20.42512777,155.19,155.14,20.42689456]
[1748698907501,13.98127197,155.18,155.13,13.98127197]
[1748698907975,20.42512777,155.19,155.14,13.98127197]
[1748698910186,20.42512777,155.19,155.14,20.42701999]
[1748698910483,13.98127197,155.19,155.14,20.42701999]
[1748698911670,20.42500681,155.19,155.14,20.42701999]
[1748698912075,13.98127197,155.19,155.14,20.42701999]
[1748698912281,144.67893851,155.2,155.18,13.98127197]
[1748698912482,10.4,155.22,155.19,13.98127197]
[1748698912881,144.67893851,155.23,155.19,13.98127197]
[1748698913067,165.10232746,155.23,155.18,13.98127197]
[1748698913372,13.98127197,155.21,155.16,6.44496004]
[1748698913570,13.98127197,155.21,155.16,20.42623201]
[1748698913773,13.98127197,155.22,155.17,13.98127197]
[1748698914495,13.98127197,155.22,155.17,20.42540654]
[1748698915472,20.42378581,155.22,155.17,20.42540654]
[1748698916190,20.42378581,155.22,155.17,6.44413457]
[1748698916191,13.98127197,155.21,155.17,6.44413457]
[1748698918161,13.98127197,155.22,155.17,13.98127197]
[1748698918367,20.42375675,155.22,155.17,13.98127197]
[1748698919373,20.42375675,155.22,155.17,20.42578045]
[1748698919589,13.98127197,155.21,155.16,13.98127197]
[1748698919971,13.98127197,155.21,155.16,20.42622066]
[1748698920894,20.42375675,155.22,155.17,13.98127197]
[1748698921288,20.42431263,155.21,155.16,20.42622066]
[1748698921598,20.42388476,155.22,155.17,13.98127197]
[1748698923798,20.42388476,155.22,155.17,20.42581106]
[1748698924187,194.83893851,155.23,155.19,13.98127197]
[1748698924387,26.0,155.21,155.2,13.98127197]
[1748698924586,26.0,155.21,155.19,20.42468256]
[1748698924898,26.0,155.21,155.19,13.98127197]
[1748698925991,26.0,155.21,155.19,20.42497169]
[1748698926692,26.0,155.21,155.15,6.5825]
[1748698926893,46.42416171,155.21,155.16,13.98127197]
[1748698927434,13.98127197,155.2,155.15,20.56377197]
[1748698927791,13.98127197,155.2,155.15,13.98127197]
[1748698928384,13.98127197,155.19,155.14,13.98127197]
[1748698928705,20.42502708,155.19,155.13,22.02031262]
[1748698928912,26.0,155.19,155.15,13.98127197]
[1748698930089,26.0,155.19,155.15,20.4264738]
[1748698932098,26.0,155.19,155.16,13.98127197]
[1748698933509,26.0,155.19,155.15,13.98127197]
[1748698934819,26.0,155.19,155.16,13.98127197]
[1748698936012,26.0,155.19,155.15,13.98127197]
[1748698936519,26.0,155.19,155.16,13.98127197]
[1748698937513,155.07893851,155.23,155.18,13.98127197]
[1748698937712,155.07893851,155.23,155.14,22.560135]
[1748698937713,155.07893851,155.23,155.2,13.98127197]
[1748698938023,39.74,155.26,155.22,13.98127197]
[1748698938207,26.0,155.25,155.22,13.98127197]
[1748698938692,82.49586575,155.27,155.22,13.98127197]
[1748698939024,26.0,155.24,155.22,13.98127197]
[1748698939715,26.0,155.24,155.22,20.42358762]
[1748698940021,10.4,155.27,155.23,13.98127197]
[1748698940399,36.4,155.27,155.23,13.98127197]
[1748698940806,56.82174617,155.27,155.19,1.5892]
[1748698941001,13.98127197,155.26,155.21,13.98127197]
[1748698941226,42.8404742,155.27,155.2,13.98127197]
[1748698941227,26.0,155.24,155.2,13.98127197]
[1748698941732,32.44169097,155.24,155.2,13.98127197]
[1748698942022,32.44169097,155.24,155.19,1.5892]
[1748698942026,32.44169097,155.24,155.21,13.98127197]
[1748698942934,32.44169097,155.24,155.2,13.98127197]
[1748698943096,32.44169097,155.24,155.19,13.98127197]
[1748698943304,46.42296294,155.24,155.19,13.98127197]
[1748698943812,86.14296294,155.24,155.19,13.98127197]
[1748698944433,72.16169097,155.24,155.19,13.98127197]
[1748698944999,65.72,155.24,155.22,13.98127197]
[1748698945515,65.72,155.24,155.21,13.98127197]
[1748698945923,72.16167729,155.24,155.21,13.98127197]
[1748698946222,32.44167729,155.24,155.2,13.98127197]
[1748698947695,26.0,155.24,155.21,13.98127197]
[1748698948127,26.0,155.24,155.22,13.98127197]
[1748698949607,26.0,155.26,155.22,13.98127197]
[1748698950825,32.44083773,155.26,155.22,13.98127197]
[1748698951406,13.98127197,155.25,155.17,25.10314886]
[1748698951600,13.98127197,155.24,155.19,13.98127197]
[1748698951802,13.98127197,155.25,155.2,13.98127197]
[1748698952728,20.42282103,155.25,155.2,13.98127197]
[1748698954044,144.67893851,155.29,155.24,13.98127197]
[1748698954234,26.0,155.28,155.23,13.98127197]
[1748698955230,26.0,155.28,155.23,20.42327079]
[1748698955231,32.4401477,155.28,155.23,20.42327079]
[1748698956036,46.42141967,155.28,155.22,13.98127197]
[1748698956348,46.42141967,155.28,155.21,6.44288383]
[1748698956519,13.98127197,155.27,155.2,8.03426147]
[1748698956723,13.98127197,155.24,155.18,13.98127197]
[1748698956943,13.98127197,155.23,155.18,13.98127197]
[1748698957225,13.98127197,155.23,155.16,22.01716284]
[1748698957226,20.42374072,155.22,155.16,22.01716284]
[1748698957548,20.42374072,155.22,155.16,8.03589087]
[1748698957858,13.98127197,155.2,155.15,30.82653424]
[1748698958162,13.98127197,155.19,155.14,20.42689567]
[1748698959245,20.42518965,155.19,155.14,20.42689567]
[1748698959624,46.42465718,155.2,155.14,20.42689567]
[1748698960352,26.0,155.2,155.16,13.98127197]
[1748698960921,39.98127197,155.2,155.15,13.98127197]
[1748698961126,46.42457738,155.2,155.15,13.98127197]
[1748698961326,46.42457738,155.2,155.15,20.42663679]
[1748698962547,39.98127197,155.2,155.15,20.42663679]
[1748698963047,26.0,155.2,155.16,13.98127197]
[1748698963352,26.0,155.19,155.17,13.98127197]
[1748698963554,26.0,155.19,155.16,6.44463372]
[1748698963555,26.0,155.21,155.18,13.98127197]
[1748698963738,13.98127197,155.25,155.2,13.98127197]
[1748698963936,161.49987955,155.26,155.2,13.98127197]
[1748698963937,175.48115152,155.26,155.2,13.98127197]
[1748698964142,26.0,155.25,155.2,13.98127197]
[1748698964651,26.0,155.25,155.21,6.44288383]
[1748698964988,169.04021048,155.26,155.21,20.4241558]
[1748698965166,155.05893851,155.26,155.21,20.4241558]
[1748698965328,181.05893851,155.26,155.21,20.4241558]
[1748698965531,155.05893851,155.26,155.22,13.98127197]
[1748698965964,10.38,155.26,155.22,13.98127197]